fUSD/lending_fUSD_20240109
["ID","MTS","AMOUNT","RATE_DAILY","PERIOD"]
[310965674,1704836014185,-500.0,0.00041753,30]
[310965675,1704836014194,-500.0,0.00041753,30]
[310965676,1704836014203,-500.0,0.00041753,30]
[310965677,1704836014212,-500.0,0.00041753,30]
[310965678,1704836014221,-1003.07,0.00041753,6]
[310965679,1704836014230,-500.0,0.00041753,30]
[310965680,1704836014239,-500.0,0.00041753,30]
[310965681,1704836014248,-599.12,0.00041753,30]
[310965682,1704836014258,-500.0,0.00041753,30]
[310965683,1704836014267,-500.0,0.00041753,30]
[310965684,1704836014276,-870.95,0.00041753,30]
[310965685,1704836014286,-774.16,0.00041753,30]
[310965686,1704836014294,-500.0,0.00041753,30]
[310965687,1704836014303,-500.0,0.00041753,2]
[310965688,1704836014312,-628.44,0.00041753,30]
[310965689,1704836014321,-500.0,0.00041753,30]
[310965690,1704836014330,-500.0,0.00041753,30]
[310965691,1704836014339,-583.93,0.00041753,30]
[310965692,1704836014348,-500.0,0.00041753,30]
[310965693,1704836014357,-664.43,0.00041753,30]
[310965694,1704836014368,-642.11,0.00041753,30]
[310965695,1704836014377,-1006.44,0.00041753,30]
[310965696,1704836014386,-586.77143308,0.00041753,30]
[310965697,1704836014396,-785.15,0.00041753,30]
[310965698,1704836014405,-500.0,0.00041753,30]
[310965699,1704836014414,-500.0,0.00041753,30]
[310965700,1704836014423,-500.0,0.00041753,30]
[310965701,1704836014434,-500.0,0.00041753,30]
[310965702,1704836014444,-647.85,0.00041753,30]
[310965703,1704836014453,-500.0,0.00041753,30]
[310965704,1704836014462,-1176.3,0.00041753,30]
[310965705,1704836014472,-892.9,0.00041753,30]
[310965706,1704836014481,-205.44080988,0.00041753,30]
[310965707,1704836014490,-875.0,0.00041753,30]
[310965708,1704836014499,-500.0,0.00041753,30]
[310965709,1704836014509,-500.0,0.00041753,30]
[310965710,1704836014518,-324.44407221,0.00041753,30]
[310965711,1704836014527,-1021.0,0.00041753,30]
[310965712,1704836014536,-500.0,0.00041753,30]
[310965713,1704836014545,-924.33,0.00041753,30]
[310965714,1704836014554,-552.38,0.00041753,30]
[310965715,1704836014563,-1079.22,0.00041753,30]
[310965716,1704836014572,-500.0,0.00041753,30]
[310965717,1704836014581,-500.0,0.00041753,30]
[310965718,1704836014590,-500.0,0.00041753,30]
[310965719,1704836014599,-500.0,0.00041753,30]
[310965720,1704836014608,-749.02,0.00041753,30]
[310965721,1704836014617,-500.0,0.00041753,30]
[310965722,1704836014626,-500.0,0.00041753,30]
[310965723,1704836014634,-504.32593332,0.00041753,30]
[310965724,1704836014645,-539.06808571,0.00041753,30]
[310965725,1704836014654,-507.33,0.00041753,30]
[310965726,1704836014663,-500.0,0.00041753,30]
[310965727,1704836014672,-251.33929065,0.00041753,30]
[310965728,1704836014684,-528.16920586,0.00041753,30]
[310965729,1704836014693,-500.0,0.00041753,30]
[310965730,1704836014702,-500.0,0.00041753,30]
[310965731,1704836014711,-556.06,0.00041753,30]
[310965732,1704836014721,-500.0,0.00041753,30]
[310965733,1704836014730,-500.0,0.00041753,30]
[310965734,1704836014740,-544.95,0.00041753,30]
[310965735,1704836014749,-500.0,0.00041753,30]
[310965736,1704836014759,-889.52,0.00041753,30]
[310965737,1704836014767,-643.58,0.00041753,30]
[310965738,1704836014777,-857.15,0.00041753,30]
[310965739,1704836014785,-549.07,0.00041753,30]
[310965740,1704836014794,-500.0,0.00041753,30]
[310965741,1704836014803,-674.98,0.00041753,30]
[310965742,1704836014812,-500.0,0.00041753,30]
[310965743,1704836014821,-879.09,0.00041753,30]
[310965744,1704836014831,-500.0,0.00041753,30]
[310965745,1704836014840,-525.43,0.00041753,30]
[310965746,1704836014854,-740.92,0.00041753,30]
[310965747,1704836014864,-500.0,0.00041753,30]
[310965748,1704836014873,-500.0,0.00041753,30]
[310965749,1704836014882,-500.0,0.00041753,30]
[310965750,1704836014890,-894.54,0.00041753,30]
[310965751,1704836014900,-1210.61,0.00041753,30]
[310965752,1704836014909,-500.0,0.00041753,30]
[310965753,1704836014918,-1262.57,0.00041753,30]
[310965754,1704836014928,-500.0,0.00041753,30]
[310965755,1704836014937,-767.71,0.00041753,30]
[310965756,1704836014946,-571.45,0.00041753,30]
[310965757,1704836014955,-500.0,0.00041753,30]
[310965758,1704836014963,-500.0,0.00041753,30]
[310965759,1704836014973,-1000.0,0.00041753,30]
[310965760,1704836014982,-513.39907384,0.00041753,30]
[310965761,1704836014991,-1012.62,0.00041753,30]
[310965762,1704836015001,-568.08,0.00041753,30]
[310965763,1704836015010,-500.0,0.00041753,30]
[310965764,1704836015023,-1247.69,0.00041753,30]
[310965765,1704836015033,-500.0,0.00041753,30]
[310965766,1704836015043,-504.29,0.00041753,30]
[310965767,1704836015053,-744.29,0.00041753,30]
[310965768,1704836015063,-500.0,0.00041753,30]
[310965769,1704836015073,-500.0,0.00041753,30]
[310965770,1704836015083,-500.0,0.00041753,30]
[310965771,1704836015094,-1071.67,0.00041753,30]
[310965772,1704836015105,-1041.65,0.00041753,30]
[310965773,1704836015115,-597.48,0.00041753,30]
[310965774,1704836015126,-500.0,0.00041753,30]
[310965775,1704836015137,-670.96,0.00041753,30]
[310965776,1704836015148,-500.0,0.00041753,30]
[310965777,1704836015159,-992.5,0.00041753,30]
[310965778,1704836015169,-500.0,0.00041753,30]
[310965779,1704836015186,-1379.24,0.00041753,30]
[310965780,1704836015197,-891.81,0.00041753,30]
[310965781,1704836015212,-500.0,0.00041753,30]
[310965782,1704836015224,-3464.95,0.00041753,30]
[310965783,1704836015234,-838.55,0.00041753,30]
[310965784,1704836015244,-660.81,0.00041753,30]
[310965785,1704836015254,-1525.96,0.00041753,30]
[310965786,1704836015264,-940.28,0.00041753,30]
[310965787,1704836015274,-797.09,0.00041753,30]
[310965788,1704836015284,-403.96144012,0.00041753,30]
[310965789,1704836015294,-581.972308,0.00041753,30]
[310965790,1704836015305,-500.0,0.00041753,30]
[310965791,1704836015315,-295.6557513,0.00041753,30]
[310965792,1704836015325,-1021.78,0.00041753,30]
[310965793,1704836015335,-500.0,0.00041753,30]
[310965794,1704836015345,-765.32,0.00041753,30]
[310965795,1704836015354,-624.2,0.00041753,30]
[310965796,1704836015365,-1106.38,0.00041753,30]
[310965797,1704836015378,-581.2,0.00041753,30]
[310965798,1704836015388,-1950.33,0.00041753,30]
[310965799,1704836015398,-779.64,0.00041753,30]
[310965800,1704836015409,-500.0,0.00041753,30]
[310965801,1704836015419,-500.0,0.00041753,30]
[310965802,1704836015436,-557.57,0.00041753,30]
[310965803,1704836015446,-578.59,0.00041753,30]
[310965804,1704836015456,-742.05,0.00041753,30]
[310965805,1704836015465,-500.0,0.00041753,30]
[310965806,1704836015475,-500.0,0.00041753,30]
[310965807,1704836015485,-500.0,0.00041753,30]
[310965808,1704836015495,-718.23,0.00041753,30]
[310965809,1704836015505,-588.20795118,0.00041753,30]
[310965810,1704836015516,-500.0,0.00041753,30]
[310965811,1704836015526,-500.0,0.00041753,30]
[310965812,1704836015536,-500.0,0.00041753,30]
[310965813,1704836015547,-1681.49,0.00041753,30]
[310965814,1704836015557,-667.7,0.00041753,30]
[310965815,1704836015566,-500.0,0.00041753,30]
[310965816,1704836015576,-500.0,0.00041753,30]
[310965817,1704836015586,-500.0,0.00041753,30]
[310965818,1704836015595,-803.72,0.00041753,30]
[310965819,1704836015605,-691.09,0.00041753,30]
[310965820,1704836015615,-820.84,0.00041753,30]
[310965821,1704836015625,-500.0,0.00041753,30]
[310965822,1704836015634,-500.0,0.00041753,7]
[310965823,1704836015644,-500.0,0.00041753,30]
[310965824,1704836015654,-500.0,0.00041753,30]
[310965825,1704836015664,-612.42,0.00041753,30]
[310965826,1704836015673,-500.0,0.00041753,30]
[310965827,1704836015687,-500.0,0.00041753,30]
[310965828,1704836015696,-500.0,0.00041753,30]
[310965829,1704836015706,-700.31,0.00041753,30]
[310965830,1704836015715,-550.50366041,0.00041753,30]
[310965831,1704836015725,-500.0,0.00041753,30]
[310965832,1704836015734,-1173.84,0.00041753,30]
[310965833,1704836015743,-890.72,0.00041753,30]
[310965834,1704836015753,-519.17,0.00041753,30]
[310965835,1704836015763,-681.49,0.00041753,30]
[310965836,1704836015773,-441.67940442,0.00041753,30]
[310965837,1704836015783,-627.48,0.00041753,30]
[310965838,1704836015793,-1141.38,0.00041753,30]
[310965839,1704836015802,-596.45,0.00041753,30]
[310965840,1704836015811,-1148.32,0.00041753,30]
[310965841,1704836015821,-616.05,0.00041753,30]
[310965842,1704836015831,-500.0,0.00041753,30]
[310965843,1704836015841,-1154.54,0.00041753,30]
[310965844,1704836015851,-500.0,0.00041753,30]
[310965845,1704836015861,-500.0,0.00041753,30]
[310965846,1704836015871,-622.7,0.00041753,30]
[310965847,1704836015881,-1370.57,0.00041753,30]
[310965848,1704836015890,-724.45,0.00041753,30]
[310965849,1704836015900,-555.95,0.00041753,30]
[310965850,1704836015910,-500.0,0.00041753,30]
[310965851,1704836015921,-677.52,0.00041753,30]
[310965852,1704836015935,-500.0,0.00041753,30]
[310965853,1704836015945,-500.0,0.00041753,30]
[310965854,1704836015956,-500.0,0.00041753,30]
[310965855,1704836015966,-500.0,0.00041753,30]
[310965856,1704836015977,-500.0,0.00041753,30]
[310965857,1704836015987,-854.7,0.00041753,30]
[310965858,1704836015997,-1132.67,0.00041753,30]
[310965859,1704836016007,-500.0,0.00041753,30]
[310965860,1704836016017,-500.0,0.00041753,30]
[310965861,1704836016028,-950.79,0.00041753,30]
[310965862,1704836016038,-500.0,0.00041753,30]
[310965863,1704836016048,-1393.23,0.00041753,30]
[310965864,1704836016058,-1054.09,0.00041753,30]
[310965865,1704836016069,-500.0,0.00041753,30]
[310965866,1704836016079,-500.0,0.00041753,30]
[310965867,1704836016089,-500.0,0.00041753,30]
[310965868,1704836016099,-982.92,0.00041753,30]
[310965869,1704836016109,-897.66,0.00041753,30]
[310965870,1704836016120,-612.78,0.00041753,30]
[310965871,1704836016131,-1038.74,0.00041753,30]
[310965872,1704836016141,-500.0,0.00041753,30]
[310965873,1704836016151,-500.0,0.00041753,30]
[310965874,1704836016162,-585.83,0.00041753,30]
[310965875,1704836016172,-1010.24,0.00041753,30]
[310965876,1704836016185,-625.2,0.00041753,30]
[310965877,1704836016195,-500.0,0.00041753,30]
[310965878,1704836016205,-1823.52,0.00041753,30]
[310965879,1704836016215,-1503.9,0.00041753,30]
[310965880,1704836016226,-500.0,0.00041753,30]
[310965881,1704836016236,-975.74,0.00041753,30]
[310965882,1704836016246,-860.51,0.00041753,30]
[310965883,1704836016257,-693.44,0.00041753,30]
[310965884,1704836016267,-812.42,0.00041753,30]
[310965885,1704836016277,-1252.33,0.00041753,30]
[310965886,1704836016287,-500.0,0.00041753,30]
[310965887,1704836016297,-1661.63,0.00041753,30]
[310965888,1704836016307,-835.41,0.00041753,30]
[310965889,1704836016317,-929.16,0.00041753,30]
[310965890,1704836016327,-500.0,0.00041753,30]
[310965891,1704836016337,-996.89,0.00041753,4]
[310965892,1704836016347,-185.62183268,0.00041753,30]
[310965893,1704836016356,-500.0,0.00041753,30]
[310965894,1704836016368,-500.0,0.00041753,30]
[310965895,1704836016378,-500.0,0.00041753,30]
[310965896,1704836016388,-1020.06,0.00041753,30]
[310965897,1704836016399,-500.0,0.00041753,30]
[310965898,1704836016410,-955.18,0.00041753,30]
[310965899,1704836016420,-1186.89,0.00041753,30]
[310965900,1704836016433,-500.0,0.00041753,2]
[310965901,1704836016443,-500.0,0.00041753,30]
[310965902,1704836016453,-636.74,0.00041753,30]
[310965903,1704836016462,-768.37,0.00041753,30]
[310965904,1704836016472,-623.64,0.00041753,30]
[310965905,1704836016482,-500.0,0.00041753,30]
[310965906,1704836016492,-1030.22,0.00041753,30]
[310965907,1704836016503,-848.66,0.00041753,30]
[310965908,1704836016512,-500.0,0.00041753,30]
[310965909,1704836016522,-500.0,0.00041753,30]
[310965910,1704836016533,-1351.73,0.00041753,30]
[310965911,1704836016544,-555.34,0.00041753,30]
[310965912,1704836016554,-500.0,0.00041753,30]
[310965913,1704836016564,-1236.91,0.00041753,30]
[310965914,1704836016574,-551.84,0.00041753,30]
[310965915,1704836016584,-500.0,0.00041753,30]
[310965916,1704836016594,-500.0,0.00041753,30]
[310965917,1704836016604,-500.0,0.00041753,30]
[310965918,1704836016614,-500.0,0.00041753,30]
[310965919,1704836016624,-576.84,0.00041753,30]
[310965920,1704836016635,-1038.11,0.00041753,30]
[310965921,1704836016645,-500.0,0.00041753,30]
[310965922,1704836016655,-500.0,0.00041753,30]
[310965923,1704836016666,-500.0,0.00041753,30]
[310965924,1704836016676,-1217.37,0.00041753,30]
[310965925,1704836016689,-1358.69,0.00041753,30]
[310965926,1704836016700,-500.0,0.00041753,30]
[310965927,1704836016710,-500.0,0.00041753,30]
[310965928,1704836016721,-500.0,0.00041753,30]
[310965929,1704836016732,-1307.04,0.00041753,30]
[310965930,1704836016743,-2306.18,0.00041753,30]
[310965931,1704836016753,-500.0,0.00041753,30]
[310965932,1704836016764,-500.0,0.00041753,30]
[310965933,1704836016774,-500.0,0.00041753,30]
[310965934,1704836016784,-1192.74,0.00041753,30]
[310965935,1704836016795,-500.0,0.00041753,30]
[310965936,1704836016805,-500.0,0.00041753,30]
[310965937,1704836016814,-500.0,0.00041753,30]
[310965938,1704836016826,-611.23,0.00041753,30]
[310965939,1704836016836,-907.9,0.00041753,30]
[310965940,1704836016846,-500.0,0.00041753,30]
[310965941,1704836016856,-996.68,0.00041753,30]
[310965942,1704836016865,-500.0,0.00041753,30]
[310965943,1704836016875,-500.0,0.00041753,30]
[310965944,1704836016885,-500.0,0.00041753,30]
[310965945,1704836016895,-627.06,0.00041753,30]
[310965946,1704836016905,-370.36216194,0.00041753,30]
[310965947,1704836016915,-500.0,0.00041753,30]
[310965948,1704836016924,-500.0,0.00041753,30]
[310965949,1704836016938,-500.0,0.00041753,30]
[310965950,1704836016948,-503.95,0.00041753,30]
[310965951,1704836016958,-500.0,0.00041753,30]
[310965952,1704836016967,-968.8,0.00041753,30]
[310965953,1704836016977,-1396.88,0.00041753,30]
[310965954,1704836016986,-635.82,0.00041753,30]
[310965955,1704836016996,-373.39157145,0.00041753,30]
[310965956,1704836017006,-1404.61,0.00041753,30]
[310965957,1704836017016,-1231.44,0.00041753,30]
[310965958,1704836017026,-500.0,0.00041753,30]
[310965959,1704836017036,-554.78,0.00041753,30]
[310965960,1704836017046,-500.0,0.00041753,30]
[310965961,1704836017056,-1763.53,0.00041753,30]
[310965962,1704836017066,-500.0,0.00041753,30]
[310965963,1704836017076,-801.87,0.00041753,30]
[310965964,1704836017085,-500.0,0.00041753,30]
[310965965,1704836017095,-604.58,0.00041753,30]
[310965966,1704836017106,-1257.01,0.00041753,30]
[310965967,1704836017116,-500.0,0.00041753,30]
[310965968,1704836017126,-500.0,0.00041753,30]
[310965969,1704836017136,-1231.81,0.00041753,30]
[310965970,1704836017146,-500.0,0.00041753,30]
[310965971,1704836017157,-2010.91,0.00041753,30]
[310965972,1704836017167,-500.0,0.00041753,30]
[310965973,1704836017177,-1440.75,0.00041753,30]
[310965974,1704836017189,-896.14,0.00041753,30]
[310965975,1704836017199,-1418.35,0.00041753,30]
[310965976,1704836017209,-632.29,0.00041753,30]
[310965977,1704836017219,-808.1,0.00041753,30]
[310965978,1704836017230,-921.45,0.00041753,30]
[310965979,1704836017240,-500.0,0.00041753,30]
[310965980,1704836017250,-500.0,0.00041753,30]
[310965981,1704836017260,-1186.03,0.00041753,30]
[310965982,1704836017270,-1164.7,0.00041753,30]
[310965983,1704836017280,-640.28,0.00041753,30]
[310965984,1704836017291,-1105.56,0.00041753,30]
[310965985,1704836017301,-602.96,0.00041753,30]
[310965986,1704836017311,-500.0,0.00041753,30]
[310965987,1704836017323,-943.57,0.00041753,30]
[310965988,1704836017333,-771.07,0.00041753,30]
[310965989,1704836017343,-1027.4,0.00041753,30]
[310965990,1704836017353,-500.0,0.00041753,30]
[310965991,1704836017364,-500.0,0.00041753,30]
[310965992,1704836017378,-500.0,0.00041753,30]
[310965993,1704836017390,-1051.31,0.00041753,30]
[310965994,1704836017401,-916.0,0.00041753,30]
[310965995,1704836017412,-500.0,0.00041753,5]
[310965996,1704836017422,-1267.33,0.00041753,30]
[310965997,1704836017434,-538.74,0.00041753,7]
[310965998,1704836017445,-701.87,0.00041753,30]
[310965999,1704836017456,-1238.29,0.00041753,30]
[310966000,1704836017466,-759.13,0.00041753,30]
[310966001,1704836017476,-500.0,0.00041753,30]
[310966002,1704836017486,-606.97,0.00041753,30]
[310966003,1704836017496,-500.0,0.00041753,30]
[310966004,1704836017507,-1550.35,0.00041753,30]
[310966005,1704836017517,-500.0,0.00041753,30]
[310966006,1704836017527,-639.29,0.00041753,30]
[310966007,1704836017537,-836.7,0.00041753,30]
[310966008,1704836017547,-667.99,0.00041753,30]
[310966009,1704836017557,-896.55,0.00041753,30]
[310966010,1704836017567,-500.0,0.00041753,30]
[310966011,1704836017577,-500.0,0.00041753,30]
[310966012,1704836017588,-1272.22,0.00041753,30]
[310966013,1704836017598,-548.7,0.00041753,30]
[310966014,1704836017608,-814.27,0.00041753,30]
[310966015,1704836017618,-1819.38,0.00041753,30]
[310966016,1704836017628,-689.54,0.00041753,30]
[310966017,1704836017638,-515.4,0.00041753,30]
[310966018,1704836017650,-2289.47,0.00041753,30]
[310966019,1704836017660,-1865.7,0.00041753,30]
[310966020,1704836017670,-500.0,0.00041753,30]
[310966021,1704836017683,-1130.6,0.00041753,30]
[310966022,1704836017693,-500.0,0.00041753,30]
[310966023,1704836017702,-1020.46,0.00041753,30]
[310966024,1704836017712,-500.0,0.00041753,30]
[310966025,1704836017722,-808.92,0.00041753,30]
[310966026,1704836017732,-765.7,0.00041753,30]
[310966027,1704836017741,-500.0,0.00041753,30]
[310966028,1704836017751,-806.27,0.00041753,30]
[310966029,1704836017761,-628.16323696,0.00041753,30]
[310966030,1704836017771,-1306.79,0.00041753,30]
[310966031,1704836017781,-500.0,0.00041753,30]
[310966032,1704836017794,-500.0,0.00041753,30]
[310966033,1704836017804,-500.0,0.00041753,30]
[310966034,1704836017814,-694.96,0.00041753,30]
[310966035,1704836017824,-1503.44,0.00041753,30]
[310966036,1704836017835,-500.0,0.00041753,30]
[310966037,1704836018081,-805.81,0.00041753,30]
[310966038,1704836018115,-500.0,0.00041753,30]
[310966039,1704836018126,-909.79,0.00041753,30]
[310966040,1704836018135,-1129.19,0.00041753,30]
[310966041,1704836018145,-500.0,0.00041753,30]
[310966042,1704836018155,-923.88,0.00041753,30]
[310966043,1704836018165,-611.47,0.00041753,30]
[310966044,1704836018176,-3103.78,0.00041753,30]
[310966045,1704836018189,-500.0,0.00041753,30]
[310966046,1704836018199,-500.0,0.00041753,30]
[310966047,1704836018209,-500.0,0.00041753,30]
[310966048,1704836018218,-500.0,0.00041753,30]
[310966049,1704836018228,-3251.04,0.00041753,30]
[310966050,1704836018238,-261.9,0.00041753,30]
[310966051,1704836018248,-500.0,0.00041753,30]
[310966052,1704836018258,-740.01,0.00041753,30]
[310966053,1704836018267,-546.86,0.00041753,30]
[310966054,1704836018277,-1698.45,0.00041753,30]
[310966055,1704836018286,-500.0,0.00041753,30]
[310966056,1704836018296,-500.0,0.00041753,30]
[310966057,1704836018305,-500.0,0.00041753,30]
[310966058,1704836018315,-500.0,0.00041753,30]
[310966059,1704836018325,-1031.59,0.00041753,30]
[310966060,1704836018334,-739.45,0.00041753,30]
[310966061,1704836018344,-500.0,0.00041753,30]
[310966062,1704836018354,-1341.58,0.00041753,30]
[310966063,1704836018364,-500.0,0.00041753,30]
[310966064,1704836018374,-500.0,0.00041753,30]
[310966065,1704836018384,-579.92,0.00041753,30]
[310966066,1704836018396,-962.12,0.00041753,30]
[310966067,1704836018405,-550.03,0.00041753,30]
[310966068,1704836018415,-12867.13,0.00041753,30]
[310966069,1704836018425,-897.67,0.00041753,30]
[310966070,1704836018437,-864.6,0.00041753,30]
[310966071,1704836018447,-550.26,0.00041753,30]
[310966072,1704836018456,-1997.12,0.00041753,30]
[310966073,1704836018465,-500.0,0.00041753,30]
[310966074,1704836018473,-998.19,0.00041753,30]
[310966075,1704836018483,-1195.83,0.00041753,30]
[310966076,1704836018492,-500.0,0.00041753,30]
[310966077,1704836018502,-48899.91,0.00041753,30]
[310966078,1704836018511,-500.0,0.00041753,30]
[310966079,1704836018520,-654.66,0.00041753,30]
[310966080,1704836018530,-2469.86,0.00041753,30]
[310966081,1704836018539,-767.91,0.00041753,30]
[310966082,1704836018550,-808.31,0.00041753,30]
[310966083,1704836018560,-673.33,0.00041753,30]
[310966084,1704836018569,-500.0,0.00041753,30]
[310966085,1704836018579,-500.0,0.00041753,30]
[310966086,1704836018589,-2521.48,0.00041753,30]
[310966087,1704836018599,-2801.21,0.00041753,30]
[310966088,1704836018609,-626.68,0.00041753,30]
[310966089,1704836018618,-886.46,0.00041753,30]
[310966090,1704836018628,-1955.03,0.00041753,30]
[310966091,1704836018638,-500.0,0.00041753,30]
[310966092,1704836018647,-2192.68,0.00041753,30]
[310966093,1704836018657,-1009.87,0.00041753,7]
[310966094,1704836018666,-500.0,0.00041753,30]
[310966095,1704836018676,-991.57,0.00041753,30]
[310966096,1704836018688,-500.0,0.00041753,30]
[310966097,1704836018697,-500.0,0.00041753,30]
[310966098,1704836018707,-828.51,0.00041753,30]
[310966099,1704836018716,-500.0,0.00041753,30]
[310966100,1704836018725,-2108.88,0.00041753,30]
[310966101,1704836018735,-1931.34,0.00041753,30]
[310966102,1704836018744,-3347.6,0.00041753,30]
[310966103,1704836018754,-14790.64,0.00041753,30]
[310966104,1704836018764,-500.0,0.00041753,30]
[310966105,1704836018773,-822.65,0.00041753,30]
[310966106,1704836018783,-1430.23,0.00041753,30]
[310966107,1704836018792,-5678.13,0.00041753,30]
[310966108,1704836018802,-610.39,0.00041753,30]
[310966109,1704836018811,-1617.86,0.00041753,30]
[310966110,1704836018822,-1087.77,0.00041753,30]
[310966111,1704836018831,-733.18,0.00041753,30]
[310966112,1704836018840,-2799.84,0.00041753,30]
[310966113,1704836018852,-2846.34,0.00041753,30]
[310966114,1704836018862,-500.0,0.00041753,30]
[310966115,1704836018873,-500.0,0.00041753,30]
[310966116,1704836018884,-1593.04,0.00041753,30]
[310966117,1704836018894,-500.0,0.00041753,30]
[310966118,1704836018904,-1520.5,0.00041753,30]
[310966119,1704836018915,-502.92,0.00041753,30]
[310966120,1704836018925,-1804.05,0.00041753,30]
[310966121,1704836018937,-539.66,0.00041753,30]
[310966122,1704836018946,-857.84,0.00041753,30]
[310966123,1704836018957,-1689.37,0.00041753,30]
[310966124,1704836018966,-1039.06,0.00041753,30]
[310966125,1704836018975,-4621.51,0.00041753,30]
[310966126,1704836018986,-500.0,0.00041753,30]
[310966127,1704836018995,-704.14,0.00041753,30]
[310966128,1704836019005,-500.0,0.00041753,30]
[310966129,1704836019015,-4643.53,0.00041753,30]
[310966130,1704836019024,-1420.75,0.00041753,30]
[310966131,1704836019034,-500.0,0.00041753,30]
[310966132,1704836019044,-571.44,0.00041753,30]
[310966133,1704836019054,-3385.64,0.00041753,30]
[310966134,1704836019066,-500.0,0.00041753,30]
[310966135,1704836019077,-500.0,0.00041753,30]
[310966136,1704836019086,-500.0,0.00041753,30]
[310966137,1704836019096,-2540.83,0.00041753,30]
[310966138,1704836019106,-965.39,0.00041753,30]
[310966139,1704836019117,-500.0,0.00041753,30]
[310966140,1704836019126,-791.0,0.00041753,30]
[310966141,1704836019135,-2213.16,0.00041753,30]
[310966142,1704836019145,-500.0,0.00041753,30]
[310966143,1704836019154,-846.61,0.00041753,30]
[310966144,1704836019163,-2650.5,0.00041753,30]
[310966145,1704836019174,-786.95,0.00041753,30]
[310966146,1704836019185,-500.0,0.00041753,30]
[310966147,1704836019194,-500.0,0.00041753,30]
[310966148,1704836019203,-500.0,0.00041753,30]
[310966149,1704836019212,-1349.94,0.00041753,30]
[310966150,1704836019221,-832.69,0.00041753,30]
[310966151,1704836019231,-2311.91,0.00041753,30]
[310966152,1704836019240,-1396.93,0.00041753,30]
[310966153,1704836019250,-500.0,0.00041753,30]
[310966154,1704836019260,-14690.46,0.00041753,30]
[310966156,1704836019270,-500.0,0.00041753,30]
[310966157,1704836019280,-2102.03,0.00041753,30]
[310966158,1704836019290,-500.0,0.00041753,30]
[310966159,1704836019299,-500.0,0.00041753,30]
[310966160,1704836019309,-6568.56,0.00041753,30]
[310966161,1704836019319,-3431.96,0.00041753,30]
[310966162,1704836019329,-2567.2,0.00041753,30]
[310966163,1704836019339,-534.6,0.00041753,30]
[310966164,1704836019349,-4057.32,0.00041753,30]
[310966165,1704836019359,-1036.03,0.00041753,30]
[310966166,1704836019374,-5465.29,0.00041753,30]
[310966167,1704836019385,-1046.98,0.00041753,30]
[310966168,1704836019395,-707.65,0.00041753,30]
[310966169,1704836019405,-558.03,0.00041753,30]
[310966170,1704836019415,-503.66,0.00041753,30]
[310966171,1704836019424,-3677.68,0.00041753,30]
[310966172,1704836019436,-796.49,0.00041753,30]
[310966173,1704836019447,-500.0,0.00041753,30]
[310966174,1704836019458,-2255.93,0.00041753,30]